Cogmind - Beta 14 @@@ ROGUE MODE // 2024.08.19 @ 14:09:38 Player: c05-3m Result: Destroyed by G-34 Mercenary with Small Laser Performance ------------- Evolutions (0) 0 Regions Visited (1) 200 Robots Destroyed (16) 80 Value Destroyed (422) 422 Prototype IDs (1) 20 Alien Tech Used (0) 0 Bonus (0) 0 TOTAL SCORE: 722 Bonus ------- None Cogmind --------- Core Integrity 0/250 Matter 270/300 Energy 100/100 System Corruption 0% Temperature Warm (179) Movement Rolling (100) Location -10/Materials Parts ------- > --- POWER (1) -------- (None) > --- PROPULSION (2) --- Compact Wheel > --- UTILITY (2) ------ Medium Storage Unit Signal Interpreter > --- WEAPON (2) ------- Grenade Launcher > --- INVENTORY (10) --- Ion Engine Improved Ion Engine Wheel Medium Storage Unit Structural Scanner Visual Processing Unit Sensor Array Advanced Beam Cannon Advanced Beam Cannon Light Assault Rifle Peak State ------------ > --- POWER ------------ Improved Ion Engine > --- PROPULSION ------- Improved Aluminum Leg Improved Aluminum Leg > --- UTILITY ---------- Medium Storage Unit Signal Interpreter > --- WEAPON ----------- Advanced Beam Cannon Advanced Beam Cannon > --- INVENTORY -------- Ion Engine Wheel Compact Wheel Medium Storage Unit Structural Scanner Visual Processing Unit Sensor Array Light Assault Rifle Grenade Launcher [Rating: 15] Favorites ----------- Power Improved Ion Engine Engine Improved Ion Engine Power Core Light Nuclear Core Propulsion Improved Aluminum Leg Treads Light Treads Leg Improved Aluminum Leg Wheel Compact Wheel Utility Signal Interpreter Storage Small Storage Unit Processor Signal Interpreter Weapon Advanced Beam Cannon Energy Cannon Advanced Beam Cannon Ballistic Gun Light Assault Rifle Launcher Grenade Launcher Build | -11 -10 ------- Run | Yrd Mat Slots Evolved . | . . Power . | . . Propulsion . | . . Utility . | . . Weapon . | . . Parts Attached 16 | 3 13 Power 2 | . 2 Engine 1 | . 1 Core 1 | . 1 Reactor . | . . Propulsion 5 | 2 3 Treads 2 | 2 . Leg 2 | . 2 Wheel 1 | . 1 Hover . | . . Flight . | . . Utility 2 | . 2 Device . | . . Storage 1 | . 1 Processor 1 | . 1 Hackware . | . . Protection . | . . Artifact . | . . Weapon 7 | 1 6 Energy Gun . | . . Energy Cannon 4 | . 4 Ballistic Gun 2 | 1 1 Ballistic Cannon . | . . Launcher 1 | . 1 Special Weapon . | . . Impact Weapon . | . . Slashing Weapon . | . . Piercing Weapon . | . . Special Melee Weapon . | . . Unidentified Prototypes 1 | . 1 Parts Lost 2 | . 2 Power 1 | . 1 Propulsion 1 | . 1 Utility . | . . Weapon . | . . Highest Loss Streak 2 | . 2 To Critical Strikes . | . . Average Slot Usage (%) 96 | . 96 Engine 11 | . 11 Core 2 | . 2 Treads 1 | . 1 Leg 23 | . 23 Wheel 2 | . 2 Storage 14 | . 14 Processor 11 | . 11 Energy Cannon 26 | . 26 Ballistic Gun 1 | . 1 Peak Build Rating 15 | 6 15 Average Rating 13 | 6 13 On Entrance 6 | 6 6 Naked Turns . | . . Heaviest Build 25 | 12 25 Greatest Support 40 | 40 40 Greatest Overweight (x) 1 | . 1 Average Overweight (x) . | . . Largest Inventory Capacity 10 | 8 10 Average Capacity 8 | 8 8 Most Carried 10 | 6 10 Average Carried 7 | 4 8 Final Capacity 10 | 8 10 Final Carried 10 | 4 10 Class Distribution -------------------- 100% | Mutant Dominant Class ---------------- Mutant | -10/Materials Resources | -11 -10 ----------- Run | Yrd Mat Matter Collected 389 | 207 182 Remotely . | . . Salvage Created 492 | . 492 Parts 37 | . 37 Haulers Intercepted . | . . Recyclers Shooed . | . . Parts Field Recycled . | . . Retrieved Matter . | . . Parts Self-Destructed . | . . Prevented . | . . Kills | -11 -10 ------- Run | Yrd Mat Combat Hostiles Destroyed 12 | . 12 Guns 1 | . 1 Cannons 11 | . 11 Classes Destroyed 4 | . 4 Builder 1 | . 1 Watcher 3 | . 3 Swarmer 3 | . 3 Grunt 9 | . 9 Best Kill Streak 4 | . 4 Combat Bots Only 4 | . 4 Max Kills in Single Turn 2 | . 2 Gunslinging . | . . Exploded . | . . Melee . | . . Uniques/NPCs Destroyed . | . . Combat | -11 -10 -------- Run | Yrd Mat Hostile Shots Fired 69 | . 69 Missed 13 | . 13 Damage Taken 701 | . 701 Core 255 | . 255 Absorbed by Shields . | . . Core Remaining (%) 100 | 100 . Volleys Fired 41 | . 41 Largest 2 | . 2 Hottest 136 | . 136 Shots Fired 61 | . 61 Gun 4 | . 4 Cannon 55 | . 55 Launcher 2 | . 2 Special . | . . Kinetic 4 | . 4 Thermal 55 | . 55 Explosive 2 | . 2 Electromagnetic . | . . Robot Hit Streak 4 | . 4 Robot Miss Streak 4 | . 4 Penetration Max . | . . Secondary Targets . | . . Shots Hit Robots 35 | . 35 Core Hits 25 | . 25 Critical Kills . | . . Critical Parts Destroyed . | . . Critical Strikes . | . . Melee Attacks . | . . Impact . | . . Slashing . | . . Piercing . | . . Sneak Attacks . | . . Combat Hostiles . | . . Follow-up Attacks . | . . Damage Inflicted 896 | . 896 Guns 17 | . 17 Cannons 616 | . 616 Explosions 263 | . 263 Melee . | . . Ramming . | . . Kinetic 17 | . 17 Thermal 616 | . 616 Explosive 263 | . 263 Electromagnetic . | . . Impact . | . . Slashing . | . . Piercing . | . . Highest Corruption . | . . Average Corruption . | . . Corruption Purged . | . . Corruption Blocked . | . . Overload Shots . | . . Overflow Damage 34 | . 34 Projectiles 2 | . 2 Explosions 32 | . 32 Melee . | . . Knockbacks . | . . Impact . | . . Kinetic . | . . Secondary . | . . Self-Inflicted Damage 78 | . 78 Shots 2 | . 2 Rammed . | . . Targets Rammed . | . . Kicked . | . . Crushed . | . . Highest Temperature 557 | . 557 Average Temperature 175 | . 175 Received Heat Transfer 291 | . 291 Effects 12 | . 12 Shutdowns 3 | . 3 Energy Bleed 1 | . 1 Interference 3 | . 3 Matter Decay 1 | . 1 Short Circuit 1 | . 1 Damage (major) 3 | . 3 Siege Activations . | . . Robots Corrupted . | . . Combat Hostiles . | . . Parts Fried . | . . Impact Corruptions . | . . Robots Melted . | . . Combat Hostiles . | . . Parts Melted 4 | . 4 Heat Transferred 1110 | . 1110 Parts Sabotaged . | . . Parts Stolen . | . . Parts Stripped . | . . Power Chain Reactions . | . . Alert | -11 -10 ------- Run | Yrd Mat Peak Influence 273 | . 273 Initial . | . . Average 96 | . 98 Maximum Alert Level 1 | . 1 Low Security (%) 89 | 100 89 Level 1 10 | . 10 Level 2 . | . . Level 3 . | . . Level 4 . | . . Level 5 . | . . High Security . | . . Max Security . | . . Squads Dispatched 2 | . 2 Investigation 1 | . 1 Extermination . | . . Reinforcement 1 | . 1 Assault . | . . Garrison . | . . Intercept . | . . Searches Triggered . | . . Construction Impeded . | . . Haulers Reinforced . | . . Active Scanning Responses . | . . Cargo Convoy Interrupts . | . . Stealth | -11 -10 --------- Run | Yrd Mat Distress Signals . | . . Communications Jammed . | . . Distress Signals . | . . Times Spotted 21 | . 21 Peak Tracking Total 6 | . 6 Tactical Retreats 2 | . 2 Traps | -11 -10 ------- Run | Yrd Mat Traps Triggered 1 | . 1 Indirectly . | . . Trap Hack Attempts . | . . Triggered . | . . Disarmed . | . . Reprogrammed . | . . Reused . | . . Traps Extracted . | . . Installed . | . . Triggered . | . . Machines | -11 -10 ---------- Run | Yrd Mat Machines Disabled 2 | . 2 Max in Single Turn 1 | . 1 Machines Repaired . | . . Machines Dismantled . | . . Machines Sabotaged . | . . Overloaded Fab Kills . | . . Hacking | -11 -10 --------- Run | Yrd Mat Machines Accessed 3 | . 3 Terminals 3 | . 3 Fabricators . | . . Repair Stations . | . . Recycling Units . | . . Scanalyzers . | . . Garrison Access . | . . Total Hacks 8 | . 8 Successful 2 | . 2 Failed 6 | . 6 Catastrophic 1 | . 1 Database Lockouts . | . . Manual 4 | . 4 Terminals 8 | . 8 Fabricators . | . . Repair Stations . | . . Recycling Units . | . . Scanalyzers . | . . Garrison Access . | . . Terminal Hacks . | . . Fabricator Hacks . | . . Repair Station Hacks . | . . Recycling Unit Hacks . | . . Scanalyzer . | . . Garrison Access Hacks . | . . Unauthorized Hacks 2 | . 2 Terminals 2 | . 2 Botnet 2 | . 2 Fabricators . | . . Repair Stations . | . . Recycling Units . | . . Scanalyzers . | . . Garrison Access . | . . Data Cores Recovered . | . . Used . | . . Hacking Detections 3 | . 3 Full Trace Events . | . . Feedback Events . | . . Feedback Blocked . | . . Robot Schematics Acquired . | . . Robots Built . | . . Authchips . | . . Time . | . . Total Robot Build Rating . | . . Part Schematics Acquired . | . . Parts Built . | . . Authchips . | . . Time . | . . Total Part Build Rating . | . . Parts Repaired . | . . Time . | . . Parts Recycled . | . . Recycled Matter . | . . Retrieved Matter . | . . Retrieved Components . | . . Parts Scanalyzed . | . . Part Schematics Acquired . | . . Parts Damaged . | . . Bothacking | -11 -10 ------------ Run | Yrd Mat Used RIF Installer . | . . Robots Hacked . | . . Non-combat . | . . Combat . | . . Robot Hacks Applied . | . . Relay Couplers Released . | . . Fabnet Peak Effective % . | . . Robots Rewired . | . . Allies Hacked . | . . Hacks Repelled . | . . Allies | -11 -10 -------- Run | Yrd Mat Total Allies . | . . Largest Group . | . . Highest-Rated Group . | . . Highest-Rated Ally . | . . Total Orders . | . . Ally Attacks . | . . Total Damage . | . . Kills . | . . Allies Corrupted . | . . Allies Melted . | . . Intel | -11 -10 ------- Run | Yrd Mat Robot Analysis Total . | . . Derelict Logs Recovered . | . . Drone Launches . | . . Drone Recoveries . | . . Exploration | -11 -10 ------------- Run | Yrd Mat Turns Passed 608 | 12 596 Spaces Moved 351 | 5 346 Core . | . . Treads 23 | 5 18 Legs 264 | . 264 Wheels 64 | . 64 Hover . | . . Flight . | . . Fastest Speed 115 | 160 115 Average Speed 121 | 160 121 Slowest Speed 190 | 160 190 Overloaded Moves . | . . Propulsion Burnouts . | . . Robots Hopped . | . . Cave-ins Triggered . | . . Exploration Rate (%) 30 | 2 59 Regions Visited 1 Branch Regions . Pre-discovered Areas . | . . Known Exits Taken . | . . Unknown Exits Taken 1 | 1 . Scrap Searched . | . . Spaces Dug . | . . Terrain Destroyed 4 | . 4 Melee . | . . Projectile . | . . AOE 4 | . 4 Terrain Rammed . | . . Walls Destroyed . | . . Machines Disabled . | . . Actions | -11 -10 --------- Run | Yrd Mat Total 471 | 9 462 Wait 46 | . 46 Move 350 | 4 346 Hop . | . . Pick Up 5 | . 5 Fast Attach 6 | . 6 Attach . | . . Detach 3 | . 3 Swap 10 | 3 7 Drop 10 | 2 8 Fire 41 | . 41 Melee . | . . Ram . | . . Kick . | . . Crush . | . . Escape Stasis . | . . Rewire . | . . Trap . | . . Miscellaneous . | . . Route ------- -11/Scrapyard -10/Materials (discovered 1 exit: [*Mat]) History --------- Turn | Location | Event 7 | -11/Scrapyard | Discovered new exit (range 2) 13 | -11/Scrapyard | Entered Materials 318 | -10/Materials | Build established: Mutant 378 | -10/Materials | Discovered new exit (range 9) 583 | -10/Materials | Core integrity fell below 50% 608 | -10/Materials | Core integrity fell below 20% 609 | -10/Materials | Destroyed by G-34 Mercenary with Small Laser Last Messages --------------- 00543_ R-06 Scavenger collects Heat Sink. 00548_ G-34 Mercenary destroyed. 00548_ K-01 Serf collects debris. 00556_ G-34 Mercenary destroyed. 00558_ K-01 Serf collects debris. 00560_ Overheating: System interference. 00560_ Adv. Beam Cannon temporarily disabled. 00568_ G-34 Mercenary destroyed. 00569_ K-01 Serf collects debris. 00570_ Acquired 12 matter. 00573_ Acquired 1 matter. 00573_ K-01 Serf collects debris. 00575_ Acquired 1 matter. 00576_ K-01 Serf collects debris. 00601_ G-34 Mercenary destroyed. 00603_ Imp. Aluminum Leg destroyed. 00607_ U-05 Engineer lays Concrete. 00608_ Lgt. Nuclear Core destroyed. 00608_ Destroyed Lgt. Nuclear Core. 00608_ U-05 Engineer destroyed. Map ----- +----------------------------------------------------+ | | | | | | | | | | | | | | | | | ###########??????????????????????????????????????? | | ??????????????????????????????????????? | | "" """ """ #?????????????????????????????????????? | | "" """ """ #?????????????????????????????????????? | | "" """ """ #?????????????????????????????????????? | | #?????########??#####?????????????????? | | ! = #?????# ] **#??# #?????????????????? | | ####+#######?????# == *#??# #?????????????????? | | ### #???????# #??# #?????????????????? | | # #???##### #### #?????????????????? | | + #???# #?????????????????? | | # #???#^ #?????????????????? | | # #???# #?????????????????? | | # ##+#???# ^ ###########??????????????? | | # # ??# ^ "" " # #??????????????? | | # # # ^"""" "# #??????????????? | | # # + """" #??????????????? | | # # # @""" ""?????????????????? | | # # # g gg """ ""?????????????????? | | # # # g """ ""?????????????????? | | + #########+#####=! #??????????????? | | # #?????????????#%= # #??????????????? | | ### #?????????????#!u ###########?######???????? | | * # ###???????????# ############ #####???? | | # # #???????????# ??? | | + #???????????# [=% ??? | | # # #???????????# %[[= ??? | | # ###???????????# ########%### #???????? | | !# #?????????????# #??#####/####????????????? | | ###! #?????????????# #??# =%! #????????????? | | " # = #?????????????# #??# """ #????????????? | | " # ########??????# #??# """ + #????????? | | " # # #??????# #??# """ ""# #????????? | | # # """* #??????# #??# ""#?# #????????? | | # # """ ######## #??# """ T"#???#????????? | | + + """ # # #??# """ ""#????????????? | | ### # # """ # #??# """ ""#????????????? | | ## ######## """ + #??# #????????????? | | # #?????# """ # #??#######/##????????????? | | # " ####### # ########## #?????????????? | | + "T + # ## # ## #??????? | | # ########+##### ## + #??????? | +----------------------------------------------------+ Best States ------------- Heat Dissipation 25 Energy Generation 14 Energy Capacity 265 Matter Stores 300 Matter Capacity 300 Sight Range 16 Terrain Scan Density 10 Evasion (%) 55 Recoil Reduction 2 Item Schematics ----------------- None Robot Schematics ------------------ None Fabricated ------------ Nothing Alien Tech Used ----------------- None Achievements -------------- None Challenges ------------ None Game ------ Seed ThermicMobileVibroblade Manual? 0 Play Time 00:12:40 Cumulative 78.9 hours Start 2024.08.19 @ 13:59:28 End 2024.08.19 @ 14:09:38 Sessions 1 Manual Loads 0 Difficulty Rogue Special Mode None Game No. 98 Rogue 98 Adventurer 0 Explorer 0 Win Type - Total 1 Types 1/0/0/0/0/0/0/0/0 Lore% 29 Gallery% 50 Achievement% 41 Wizard Run 0 Options --------- Layout 1 ASCII 0 Keyboard 0 Movement Mouse Keybinds 0 Fullscreen 2 Font 48/Smallcaps Map View 50x35 Zoom Use 0% Tactical HUD 1 Map Filters SHIFT_HUE(280) Filters LOW_CONTRAST(13,24,33)|SHIFT_HUE(80) Steam 1 RUN: 74c05b37-ce41-4499-8d97-03e91a5005d4